[Event "Titled Tuesday Blitz October 25 Late 2022"]
[White "Bordi, Kevin"]
[Black "Goncalves, Davi Sulzbacher"]
[WhiteFideId "621862"]
[BlackFideId "2154510"]
[WhiteElo "2836"]
[BlackElo "2182"]
[Result "1-0"]
[Round "10"]
[TimeControl "180+1"]
[Date "2022.10.26"]
[WhiteClock "0:01:25"]
[BlackClock "0:00:01"]

1. e4 {[%clk 0:03:00]}  c5 {[%clk 0:03:00]} 2. Nf3 {[%clk 0:02:59]}  Nc6 {[%clk 0:03:00]} 3. Bc4 {[%clk 0:02:59]}  e6 {[%clk 0:02:56]} 4. O-O {[%clk 0:02:59]}  Rb8 {[%clk 0:02:54]} 5. Re1 {[%clk 0:02:55]}  b5 {[%clk 0:02:53]} 6. Bf1 {[%clk 0:02:56]}  Nge7 {[%clk 0:02:50]} 7. c3 {[%clk 0:02:56]}  d5 {[%clk 0:02:44]} 8. exd5 {[%clk 0:02:56]}  Nxd5 {[%clk 0:02:43]} 9. d4 {[%clk 0:02:56]}  Be7 {[%clk 0:02:36]} 10. dxc5 {[%clk 0:02:53]}  Bxc5 {[%clk 0:02:36]} 11. a4 {[%clk 0:02:53]}  b4 {[%clk 0:02:29]} 12. Bb5 {[%clk 0:02:49]}  Bd7 {[%clk 0:02:16]} 13. Qxd5 {[%clk 0:02:48]}  Qb6 {[%clk 0:02:05]} 14. Qd2 {[%clk 0:02:45]}  O-O {[%clk 0:02:04]} 15. Qe2 {[%clk 0:02:38]}  a6 {[%clk 0:01:55]} 16. Bxa6 {[%clk 0:02:29]}  Na5 {[%clk 0:01:46]} 17. Bf4 {[%clk 0:02:21]}  Ra8 {[%clk 0:01:43]} 18. Bb5 {[%clk 0:02:18]}  Nb3 {[%clk 0:01:29]} 19. Bxd7 {[%clk 0:02:17]}  Nxa1 {[%clk 0:01:29]} 20. Nbd2 {[%clk 0:02:14]}  bxc3 {[%clk 0:01:08]} 21. bxc3 {[%clk 0:02:10]}  Nc2 {[%clk 0:01:05]} 22. Nc4 {[%clk 0:02:07]}  Qa7 {[%clk 0:00:53]} 23. Rd1 {[%clk 0:02:04]}  Na3 {[%clk 0:00:41]} 24. Nxa3 {[%clk 0:02:03]}  Bxa3 {[%clk 0:00:41]} 25. Bb5 {[%clk 0:01:58]}  Rfd8 {[%clk 0:00:37]} 26. h3 {[%clk 0:01:58]}  Bc5 {[%clk 0:00:34]} 27. Bg3 {[%clk 0:01:58]}  h6 {[%clk 0:00:29]} 28. Ne5 {[%clk 0:01:58]}  Qe7 {[%clk 0:00:22]} 29. Rxd8+ {[%clk 0:01:55]}  Qxd8 {[%clk 0:00:22]} 30. Qf3 {[%clk 0:01:55]}  Qf6 {[%clk 0:00:21]} 31. Qxf6 {[%clk 0:01:51]}  gxf6 {[%clk 0:00:22]} 32. Nd7 {[%clk 0:01:50]}  Be7 {[%clk 0:00:20]} 33. Nb6 {[%clk 0:01:50]}  Ra5 {[%clk 0:00:18]} 34. Bc7 {[%clk 0:01:44]}  Ra7 {[%clk 0:00:17]} 35. Bf4 {[%clk 0:01:44]}  Bd8 {[%clk 0:00:15]} 36. Nc8 {[%clk 0:01:39]}  Ra8 {[%clk 0:00:14]} 37. Nd6 {[%clk 0:01:39]}  Kg7 {[%clk 0:00:14]} 38. Nb7 {[%clk 0:01:38]}  Bb6 {[%clk 0:00:11]} 39. c4 {[%clk 0:01:34]}  e5 {[%clk 0:00:11]} 40. Be3 {[%clk 0:01:33]}  Bxe3 {[%clk 0:00:08]} 41. fxe3 {[%clk 0:01:34]}  Rb8 {[%clk 0:00:08]} 42. Nd6 {[%clk 0:01:31]}  Kg6 {[%clk 0:00:05]} 43. a5 {[%clk 0:01:31]}  f5 {[%clk 0:00:05]} 44. a6 {[%clk 0:01:31]}  Ra8 {[%clk 0:00:05]} 45. Nb7 {[%clk 0:01:25]}  Kf6 {[%clk 0:00:03]} 46. Nc5 {[%clk 0:01:25]}  Ke7 {[%clk 0:00:03]} 47. Bc6 {[%clk 0:01:26]}  Ra7 {[%clk 0:00:02]} 48. Bb7 {[%clk 0:01:26]}  Kd6 {[%clk 0:00:03]} 49. Nd3 {[%clk 0:01:26]}  Kc7 {[%clk 0:00:01]} 50. Nxe5 {[%clk 0:01:25]}  f6 {[%clk 0:00:01]} 51. Nd3 {[%clk 0:01:25]} 1-0


[Site "https://www.chess.com"]

[Event "Titled Tuesday Blitz October 25 Late 2022"]
[White "Buscar, Michael"]
[Black "Jimenez Almeida, Luis David"]
[WhiteFideId "2603616"]
[BlackFideId "22242244"]
[WhiteElo "2010"]
[BlackElo "2158"]
[Result "1-0"]
[Round "10"]
[TimeControl "180+1"]
[Date "2022.10.26"]
[WhiteClock "0:00:23"]
[BlackClock "0:00:14"]

1. Nf3 {[%clk 0:02:58]}  g6 {[%clk 0:02:59]} 2. g3 {[%clk 0:02:56]}  Bg7 {[%clk 0:02:59]} 3. Bg2 {[%clk 0:02:57]}  d6 {[%clk 0:02:59]} 4. d3 {[%clk 0:02:56]}  c5 {[%clk 0:02:56]} 5. e4 {[%clk 0:02:56]}  Nc6 {[%clk 0:02:56]} 6. O-O {[%clk 0:02:55]}  e5 {[%clk 0:02:55]} 7. c3 {[%clk 0:02:55]}  Nge7 {[%clk 0:02:54]} 8. a4 {[%clk 0:02:55]}  b6 {[%clk 0:02:51]} 9. Na3 {[%clk 0:02:54]}  O-O {[%clk 0:02:51]} 10. Nc4 {[%clk 0:02:54]}  h6 {[%clk 0:02:46]} 11. Ne3 {[%clk 0:02:53]}  Be6 {[%clk 0:02:46]} 12. Nd2 {[%clk 0:02:49]}  d5 {[%clk 0:02:44]} 13. exd5 {[%clk 0:02:46]}  Nxd5 {[%clk 0:02:45]} 14. Ndc4 {[%clk 0:02:46]}  Nde7 {[%clk 0:02:41]} 15. Qe2 {[%clk 0:02:42]}  Rc8 {[%clk 0:02:40]} 16. Rd1 {[%clk 0:02:37]}  Qc7 {[%clk 0:02:41]} 17. Ng4 {[%clk 0:02:34]}  h5 {[%clk 0:02:26]} 18. Nge3 {[%clk 0:02:22]}  Rfd8 {[%clk 0:02:25]} 19. Bd2 {[%clk 0:01:49]}  a6 {[%clk 0:02:11]} 20. Be1 {[%clk 0:01:49]}  b5 {[%clk 0:02:09]} 21. axb5 {[%clk 0:01:49]}  axb5 {[%clk 0:02:10]} 22. Nd2 {[%clk 0:01:49]}  b4 {[%clk 0:02:07]} 23. Ndc4 {[%clk 0:01:45]}  Ra8 {[%clk 0:02:03]} 24. Qc2 {[%clk 0:01:37]}  bxc3 {[%clk 0:02:02]} 25. bxc3 {[%clk 0:01:36]}  h4 {[%clk 0:01:59]} 26. Ra2 {[%clk 0:01:29]}  Rxa2 {[%clk 0:01:56]} 27. Qxa2 {[%clk 0:01:30]}  h3 {[%clk 0:01:56]} 28. Bf3 {[%clk 0:01:24]}  Kh7 {[%clk 0:01:48]} 29. Qa3 {[%clk 0:01:23]}  Qa7 {[%clk 0:01:28]} 30. Qxa7 {[%clk 0:01:21]}  Nxa7 {[%clk 0:01:29]} 31. Bg4 {[%clk 0:01:21]}  Bxg4 {[%clk 0:01:22]} 32. Nxg4 {[%clk 0:01:22]}  Nac6 {[%clk 0:01:21]} 33. f3 {[%clk 0:01:15]}  Nd5 {[%clk 0:01:17]} 34. Nf2 {[%clk 0:01:13]}  Ra8 {[%clk 0:01:08]} 35. Nxh3 {[%clk 0:01:08]}  Ra2 {[%clk 0:01:07]} 36. Ng5+ {[%clk 0:01:08]}  Kg8 {[%clk 0:01:06]} 37. Ne4 {[%clk 0:01:07]}  Bh6 {[%clk 0:00:57]} 38. Bf2 {[%clk 0:01:04]}  f5 {[%clk 0:00:54]} 39. Nxc5 {[%clk 0:01:00]}  Nxc3 {[%clk 0:00:54]} 40. Re1 {[%clk 0:01:01]}  Bg7 {[%clk 0:00:41]} 41. Nd7 {[%clk 0:00:52]}  e4 {[%clk 0:00:27]} 42. dxe4 {[%clk 0:00:51]}  fxe4 {[%clk 0:00:28]} 43. fxe4 {[%clk 0:00:49]}  Ne2+ {[%clk 0:00:27]} 44. Kf1 {[%clk 0:00:45]}  Ncd4 {[%clk 0:00:27]} 45. e5 {[%clk 0:00:40]}  Rc2 {[%clk 0:00:26]} 46. Ne3 {[%clk 0:00:38]}  Rc7 {[%clk 0:00:23]} 47. Nf6+ {[%clk 0:00:37]}  Bxf6 {[%clk 0:00:22]} 48. exf6 {[%clk 0:00:37]}  Nc3 {[%clk 0:00:22]} 49. Ra1 {[%clk 0:00:31]}  Kf7 {[%clk 0:00:19]} 50. Ng4 {[%clk 0:00:30]}  Nf5 {[%clk 0:00:17]} 51. Ra6 {[%clk 0:00:28]}  Ne4 {[%clk 0:00:16]} 52. Ne5+ {[%clk 0:00:28]}  Ke8 {[%clk 0:00:14]} 53. f7+ {[%clk 0:00:28]}  Kf8 {[%clk 0:00:14]} 54. Ra8+ {[%clk 0:00:28]}  Ke7 {[%clk 0:00:13]} 55. f8=Q+ {[%clk 0:00:28]}  Ke6 {[%clk 0:00:14]} 56. Re8+ {[%clk 0:00:28]}  Kd5 {[%clk 0:00:14]} 57. Nd3 {[%clk 0:00:23]} 1-0


[Site "https://www.chess.com"]

[Event "Titled Tuesday Blitz October 25 Late 2022"]
[White "Clawitter, Craig"]
[Black "Osiecki, Stanislaw"]
[WhiteFideId "2023105"]
[BlackFideId "1102990"]
[WhiteElo "2258"]
[BlackElo "2088"]
[Result "0-1"]
[Round "10"]
[TimeControl "180+1"]
[Date "2022.10.26"]
[WhiteClock "0:00:01"]
[BlackClock "0:00:21"]

1. e4 {[%clk 0:03:00]}  e6 {[%clk 0:02:59]} 2. d4 {[%clk 0:03:00]}  d5 {[%clk 0:02:54]} 3. e5 {[%clk 0:03:00]}  c5 {[%clk 0:02:54]} 4. c3 {[%clk 0:03:01]}  Nc6 {[%clk 0:02:53]} 5. Nf3 {[%clk 0:03:01]}  Qb6 {[%clk 0:02:53]} 6. a3 {[%clk 0:03:01]}  c4 {[%clk 0:02:52]} 7. Nbd2 {[%clk 0:03:01]}  Na5 {[%clk 0:02:53]} 8. g3 {[%clk 0:03:01]}  Bd7 {[%clk 0:02:52]} 9. Bg2 {[%clk 0:03:02]}  h6 {[%clk 0:02:51]} 10. h4 {[%clk 0:03:01]}  O-O-O {[%clk 0:02:50]} 11. O-O {[%clk 0:03:02]}  Kb8 {[%clk 0:02:50]} 12. Rb1 {[%clk 0:02:57]}  Rc8 {[%clk 0:02:48]} 13. Re1 {[%clk 0:02:56]}  Ne7 {[%clk 0:02:46]} 14. Nf1 {[%clk 0:02:48]}  Nec6 {[%clk 0:02:46]} 15. Bf4 {[%clk 0:02:44]}  Be7 {[%clk 0:02:45]} 16. h5 {[%clk 0:02:44]}  g5 {[%clk 0:02:43]} 17. hxg6 {[%clk 0:02:44]}  fxg6 {[%clk 0:02:43]} 18. g4 {[%clk 0:02:36]}  g5 {[%clk 0:02:40]} 19. Be3 {[%clk 0:02:20]}  Be8 {[%clk 0:02:40]} 20. Ng3 {[%clk 0:02:19]}  Bg6 {[%clk 0:02:39]} 21. Nh5 {[%clk 0:02:06]}  Bxb1 {[%clk 0:02:38]} 22. Qxb1 {[%clk 0:02:07]}  Rhg8 {[%clk 0:02:32]} 23. Nd2 {[%clk 0:01:56]}  Nb3 {[%clk 0:02:29]} 24. Nxb3 {[%clk 0:01:47]}  cxb3 {[%clk 0:02:27]} 25. Qh7 {[%clk 0:01:40]}  Rh8 {[%clk 0:02:06]} 26. Qf7 {[%clk 0:01:33]}  Qd8 {[%clk 0:01:34]} 27. Qxe6 {[%clk 0:01:30]}  Na5 {[%clk 0:01:22]} 28. Bxd5 {[%clk 0:01:04]}  Rc7 {[%clk 0:01:16]} 29. f4 {[%clk 0:00:30]}  gxf4 {[%clk 0:01:15]} 30. Bxf4 {[%clk 0:00:29]}  Bg5 {[%clk 0:01:13]} 31. Bg3 {[%clk 0:00:23]}  Rd7 {[%clk 0:01:04]} 32. Qxd7 {[%clk 0:00:21]}  Qxd7 {[%clk 0:01:02]} 33. e6+ {[%clk 0:00:22]}  Qc7 {[%clk 0:01:00]} 34. e7 {[%clk 0:00:14]}  Re8 {[%clk 0:00:45]} 35. Bxc7+ {[%clk 0:00:11]}  Kxc7 {[%clk 0:00:45]} 36. Ng7 {[%clk 0:00:11]}  Rxe7 {[%clk 0:00:44]} 37. Rxe7+ {[%clk 0:00:11]}  Bxe7 {[%clk 0:00:43]} 38. Nf5 {[%clk 0:00:11]}  Bf8 {[%clk 0:00:42]} 39. Kg2 {[%clk 0:00:11]}  b5 {[%clk 0:00:38]} 40. Kf3 {[%clk 0:00:10]}  Bxa3 {[%clk 0:00:36]} 41. bxa3 {[%clk 0:00:09]}  b2 {[%clk 0:00:35]} 42. Ba2 {[%clk 0:00:08]}  Nc4 {[%clk 0:00:33]} 43. Ke2 {[%clk 0:00:07]}  Nxa3 {[%clk 0:00:33]} 44. Nxh6 {[%clk 0:00:05]}  Kd7 {[%clk 0:00:31]} 45. g5 {[%clk 0:00:05]}  Ke7 {[%clk 0:00:29]} 46. g6 {[%clk 0:00:05]}  Kf6 {[%clk 0:00:29]} 47. Ng4+ {[%clk 0:00:02]}  Kxg6 {[%clk 0:00:29]} 48. Ne5+ {[%clk 0:00:01]}  Kf5 {[%clk 0:00:29]} 49. Nc6 {[%clk 0:00:02]}  a6 {[%clk 0:00:26]} 50. Nb8 {[%clk 0:00:01]}  a5 {[%clk 0:00:24]} 51. Nc6 {[%clk 0:00:01]}  a4 {[%clk 0:00:21]} 0-1


[Site "https://www.chess.com"]

[Event "Titled Tuesday Blitz October 25 Late 2022"]
[White "Cortes Orihuela, Javier"]
[Black "Aggelis, Nikolaos"]
[WhiteFideId "3414329"]
[BlackFideId "4213220"]
[WhiteElo "2080"]
[BlackElo "2187"]
[Result "0-1"]
[Round "10"]
[TimeControl "180+1"]
[Date "2022.10.26"]
[WhiteClock "0:00:22"]
[BlackClock "0:00:40"]

1. d4 {[%clk 0:03:00]}  Nf6 {[%clk 0:02:34]} 2. c4 {[%clk 0:03:01]}  g6 {[%clk 0:02:35]} 3. Nc3 {[%clk 0:03:00]}  d5 {[%clk 0:02:35]} 4. cxd5 {[%clk 0:02:59]}  Nxd5 {[%clk 0:02:36]} 5. e4 {[%clk 0:03:00]}  Nxc3 {[%clk 0:02:37]} 6. bxc3 {[%clk 0:03:01]}  Bg7 {[%clk 0:02:37]} 7. Be3 {[%clk 0:03:01]}  c5 {[%clk 0:02:38]} 8. Qd2 {[%clk 0:03:00]}  Qa5 {[%clk 0:02:32]} 9. Rc1 {[%clk 0:02:54]}  O-O {[%clk 0:02:29]} 10. d5 {[%clk 0:02:42]}  e6 {[%clk 0:02:25]} 11. c4 {[%clk 0:02:41]}  Qxd2+ {[%clk 0:02:23]} 12. Bxd2 {[%clk 0:02:42]}  exd5 {[%clk 0:02:19]} 13. cxd5 {[%clk 0:02:38]}  Re8 {[%clk 0:02:15]} 14. f3 {[%clk 0:02:33]}  f5 {[%clk 0:02:11]} 15. Bb5 {[%clk 0:01:57]}  Bd7 {[%clk 0:02:09]} 16. Bd3 {[%clk 0:01:43]}  b6 {[%clk 0:01:52]} 17. Ne2 {[%clk 0:01:40]}  a6 {[%clk 0:01:43]} 18. O-O {[%clk 0:01:38]}  Bb5 {[%clk 0:01:41]} 19. Bxb5 {[%clk 0:01:32]}  axb5 {[%clk 0:01:42]} 20. Bc3 {[%clk 0:01:25]}  Rxa2 {[%clk 0:01:37]} 21. Bxg7 {[%clk 0:01:19]}  Rxe2 {[%clk 0:01:36]} 22. Bh6 {[%clk 0:01:19]}  fxe4 {[%clk 0:01:30]} 23. fxe4 {[%clk 0:01:20]}  R2xe4 {[%clk 0:01:29]} 24. Rf6 {[%clk 0:01:16]}  Nd7 {[%clk 0:01:06]} 25. Rd6 {[%clk 0:01:11]}  Ne5 {[%clk 0:01:06]} 26. Rf1 {[%clk 0:00:50]}  Nf7 {[%clk 0:01:02]} 27. Rxf7 {[%clk 0:00:32]}  Kxf7 {[%clk 0:01:03]} 28. Rd7+ {[%clk 0:00:32]}  R8e7 {[%clk 0:01:00]} 29. Rd6 {[%clk 0:00:29]}  c4 {[%clk 0:00:53]} 30. Bg5 {[%clk 0:00:29]}  c3 {[%clk 0:00:50]} 31. Rf6+ {[%clk 0:00:24]}  Ke8 {[%clk 0:00:43]} 32. Rc6 {[%clk 0:00:22]}  Rc4 {[%clk 0:00:40]} 0-1


[Site "https://www.chess.com"]

[Event "Titled Tuesday Blitz October 25 Late 2022"]
[White "D`Arruda, Ricardo D."]
[Black "Putnam, Liam"]
[WhiteFideId "100692"]
[BlackFideId "30938279"]
[WhiteElo "2466"]
[BlackElo "2082"]
[Result "0-1"]
[Round "10"]
[TimeControl "180+1"]
[Date "2022.10.26"]
[WhiteClock "0:00:19"]
[BlackClock "0:00:59"]

1. d4 {[%clk 0:02:38]}  g6 {[%clk 0:02:57]} 2. e4 {[%clk 0:02:37]}  Bg7 {[%clk 0:02:58]} 3. Nc3 {[%clk 0:02:37]}  d6 {[%clk 0:02:58]} 4. f4 {[%clk 0:02:37]}  a6 {[%clk 0:02:58]} 5. Nf3 {[%clk 0:02:37]}  b5 {[%clk 0:02:59]} 6. Be3 {[%clk 0:02:36]}  Bb7 {[%clk 0:02:59]} 7. Bd3 {[%clk 0:02:35]}  Nd7 {[%clk 0:02:57]} 8. Qd2 {[%clk 0:02:34]}  c5 {[%clk 0:02:57]} 9. d5 {[%clk 0:02:27]}  Ngf6 {[%clk 0:02:51]} 10. e5 {[%clk 0:02:20]}  Nxd5 {[%clk 0:02:49]} 11. Nxd5 {[%clk 0:02:18]}  Bxd5 {[%clk 0:02:50]} 12. Bxb5 {[%clk 0:02:17]}  Bxf3 {[%clk 0:02:42]} 13. Bxd7+ {[%clk 0:02:17]}  Qxd7 {[%clk 0:02:43]} 14. gxf3 {[%clk 0:02:16]}  O-O {[%clk 0:02:38]} 15. O-O {[%clk 0:02:13]}  Qf5 {[%clk 0:02:32]} 16. exd6 {[%clk 0:01:58]}  Rfd8 {[%clk 0:02:26]} 17. c3 {[%clk 0:01:56]}  Rxd6 {[%clk 0:02:17]} 18. Qf2 {[%clk 0:01:55]}  Rad8 {[%clk 0:02:15]} 19. Rae1 {[%clk 0:01:51]}  c4 {[%clk 0:02:14]} 20. Re2 {[%clk 0:01:50]}  Rd3 {[%clk 0:02:14]} 21. Rfe1 {[%clk 0:01:50]}  e6 {[%clk 0:02:14]} 22. Bb6 {[%clk 0:01:43]}  Rb8 {[%clk 0:02:13]} 23. Re4 {[%clk 0:01:38]}  Qd5 {[%clk 0:02:08]} 24. Bc7 {[%clk 0:01:32]}  Rb7 {[%clk 0:02:05]} 25. Be5 {[%clk 0:01:32]}  Rd2 {[%clk 0:02:04]} 26. R1e2 {[%clk 0:01:32]}  Rbxb2 {[%clk 0:02:02]} 27. Bxg7 {[%clk 0:01:29]}  Kxg7 {[%clk 0:02:03]} 28. Rxd2 {[%clk 0:01:15]}  Rxd2 {[%clk 0:02:04]} 29. Re2 {[%clk 0:01:15]}  Rd3 {[%clk 0:01:59]} 30. Re3 {[%clk 0:01:09]}  Rd1+ {[%clk 0:01:47]} 31. Kg2 {[%clk 0:01:08]}  h5 {[%clk 0:01:42]} 32. Re4 {[%clk 0:00:58]}  Rd2 {[%clk 0:01:32]} 33. Re2 {[%clk 0:00:57]}  Rd3 {[%clk 0:01:32]} 34. Re3 {[%clk 0:00:57]}  a5 {[%clk 0:01:24]} 35. a4 {[%clk 0:00:54]}  Qf5 {[%clk 0:01:17]} 36. Rxd3 {[%clk 0:00:46]}  Qxd3 {[%clk 0:01:17]} 37. Qe1 {[%clk 0:00:40]}  Qc2+ {[%clk 0:01:17]} 38. Kg3 {[%clk 0:00:40]}  h4+ {[%clk 0:01:02]} 39. Kh3 {[%clk 0:00:35]}  Qf5+ {[%clk 0:01:03]} 40. Kg2 {[%clk 0:00:35]}  Qxf4 {[%clk 0:01:02]} 41. Qe2 {[%clk 0:00:25]}  e5 {[%clk 0:01:01]} 42. Qb2 {[%clk 0:00:22]}  g5 {[%clk 0:01:00]} 43. Qb5 {[%clk 0:00:21]}  h3+ {[%clk 0:00:59]} 44. Kf2 {[%clk 0:00:20]}  Qxh2+ {[%clk 0:00:59]} 45. Ke3 {[%clk 0:00:19]}  Qf4+ {[%clk 0:00:59]} 46. Ke2 {[%clk 0:00:19]}  h2 {[%clk 0:00:59]} 0-1


[Site "https://www.chess.com"]

[Event "Titled Tuesday Blitz October 25 Late 2022"]
[White "Djordjevic, Dejan N"]
[Black "Mazurkiewicz, Michal"]
[WhiteFideId "913316"]
[BlackFideId "1124943"]
[WhiteElo "2262"]
[BlackElo "2063"]
[Result "0-1"]
[Round "10"]
[TimeControl "180+1"]
[Date "2022.10.26"]
[WhiteClock "0:00:02"]
[BlackClock "0:00:17"]

1. e4 {[%clk 0:02:52]}  d6 {[%clk 0:02:58]} 2. d4 {[%clk 0:02:52]}  Nf6 {[%clk 0:02:59]} 3. Nc3 {[%clk 0:02:52]}  c6 {[%clk 0:03:00]} 4. g3 {[%clk 0:02:51]}  e5 {[%clk 0:02:59]} 5. Nge2 {[%clk 0:02:51]}  Be7 {[%clk 0:03:00]} 6. Bg2 {[%clk 0:02:51]}  O-O {[%clk 0:03:01]} 7. O-O {[%clk 0:02:50]}  b5 {[%clk 0:03:01]} 8. a3 {[%clk 0:02:49]}  a6 {[%clk 0:03:01]} 9. h3 {[%clk 0:02:49]}  Nbd7 {[%clk 0:03:01]} 10. f4 {[%clk 0:02:48]}  Bb7 {[%clk 0:03:01]} 11. g4 {[%clk 0:02:44]}  c5 {[%clk 0:02:13]} 12. fxe5 {[%clk 0:02:37]}  dxe5 {[%clk 0:02:10]} 13. d5 {[%clk 0:02:37]}  Ne8 {[%clk 0:02:10]} 14. Be3 {[%clk 0:02:32]}  Nd6 {[%clk 0:02:10]} 15. b3 {[%clk 0:02:30]}  Bg5 {[%clk 0:02:09]} 16. Bf2 {[%clk 0:02:28]}  Rc8 {[%clk 0:02:09]} 17. Kh1 {[%clk 0:02:27]}  g6 {[%clk 0:02:05]} 18. Qe1 {[%clk 0:02:13]}  f5 {[%clk 0:02:03]} 19. gxf5 {[%clk 0:02:02]}  gxf5 {[%clk 0:02:03]} 20. Rg1 {[%clk 0:02:01]}  Kh8 {[%clk 0:02:02]} 21. exf5 {[%clk 0:01:57]}  Nxf5 {[%clk 0:01:52]} 22. Ng3 {[%clk 0:01:43]}  Nd6 {[%clk 0:01:40]} 23. Rd1 {[%clk 0:01:30]}  Bf4 {[%clk 0:01:35]} 24. Nh5 {[%clk 0:01:24]}  Bh6 {[%clk 0:01:22]} 25. Ne4 {[%clk 0:01:21]}  Nxe4 {[%clk 0:01:15]} 26. Bxe4 {[%clk 0:01:20]}  Qe8 {[%clk 0:01:15]} 27. Ng3 {[%clk 0:01:10]}  Nf6 {[%clk 0:01:15]} 28. Bf5 {[%clk 0:01:00]}  Rd8 {[%clk 0:01:13]} 29. c4 {[%clk 0:00:59]}  Bf4 {[%clk 0:01:06]} 30. Kh2 {[%clk 0:00:57]}  Nxd5 {[%clk 0:00:59]} 31. cxd5 {[%clk 0:00:44]}  Rxf5 {[%clk 0:00:59]} 32. Qe4 {[%clk 0:00:39]}  Qf7 {[%clk 0:00:45]} 33. Bxc5 {[%clk 0:00:20]}  Rxd5 {[%clk 0:00:35]} 34. Rxd5 {[%clk 0:00:14]}  Bxd5 {[%clk 0:00:36]} 35. Qd3 {[%clk 0:00:12]}  Rg5 {[%clk 0:00:26]} 36. Bf2 {[%clk 0:00:09]}  h5 {[%clk 0:00:20]} 37. h4 {[%clk 0:00:06]}  Rg4 {[%clk 0:00:20]} 38. Rd1 {[%clk 0:00:03]}  Rxh4+ {[%clk 0:00:18]} 39. Kg1 {[%clk 0:00:02]}  Bxg3 {[%clk 0:00:17]} 0-1


[Site "https://www.chess.com"]

[Event "Titled Tuesday Blitz October 25 Late 2022"]
[White "Faizrakhmanov, Ramil"]
[Black "Storey, Charles H"]
[WhiteFideId "24103209"]
[BlackFideId "406686"]
[WhiteElo "2421"]
[BlackElo "2252"]
[Result "0-1"]
[Round "10"]
[TimeControl "180+1"]
[Date "2022.10.26"]
[WhiteClock "0:00:18"]
[BlackClock "0:00:05"]

1. e4 {[%clk 0:03:00]}  g6 {[%clk 0:02:59]} 2. d4 {[%clk 0:03:00]}  Bg7 {[%clk 0:02:59]} 3. Nc3 {[%clk 0:03:00]}  c5 {[%clk 0:02:59]} 4. d5 {[%clk 0:03:00]}  d6 {[%clk 0:02:59]} 5. Nf3 {[%clk 0:02:58]}  Nf6 {[%clk 0:03:00]} 6. Bb5+ {[%clk 0:02:58]}  Bd7 {[%clk 0:02:59]} 7. a4 {[%clk 0:02:58]}  O-O {[%clk 0:02:59]} 8. O-O {[%clk 0:02:58]}  Bxb5 {[%clk 0:02:58]} 9. axb5 {[%clk 0:02:59]}  Nbd7 {[%clk 0:02:58]} 10. h3 {[%clk 0:02:58]}  Ne8 {[%clk 0:02:57]} 11. Bf4 {[%clk 0:02:58]}  Nc7 {[%clk 0:02:56]} 12. Qe2 {[%clk 0:02:58]}  f6 {[%clk 0:02:56]} 13. Nd2 {[%clk 0:02:55]}  a6 {[%clk 0:02:52]} 14. bxa6 {[%clk 0:02:54]}  Nxa6 {[%clk 0:02:52]} 15. Nb5 {[%clk 0:02:51]}  Qb6 {[%clk 0:02:46]} 16. c4 {[%clk 0:02:50]}  Nc7 {[%clk 0:02:44]} 17. Nxc7 {[%clk 0:02:48]}  Qxc7 {[%clk 0:02:43]} 18. Rxa8 {[%clk 0:02:47]}  Rxa8 {[%clk 0:02:43]} 19. Nb1 {[%clk 0:02:47]}  Qb6 {[%clk 0:02:39]} 20. Nc3 {[%clk 0:02:48]}  Qb3 {[%clk 0:02:38]} 21. Rc1 {[%clk 0:02:41]}  Nb6 {[%clk 0:02:31]} 22. Nb5 {[%clk 0:02:42]}  Ra2 {[%clk 0:02:15]} 23. Rc2 {[%clk 0:02:42]}  Ra1+ {[%clk 0:02:01]} 24. Kh2 {[%clk 0:02:41]}  Re1 {[%clk 0:02:00]} 25. Qxe1 {[%clk 0:02:38]}  Qxc2 {[%clk 0:02:00]} 26. Qa5 {[%clk 0:02:38]}  Qxe4 {[%clk 0:01:44]} 27. Bg3 {[%clk 0:02:38]}  Nd7 {[%clk 0:01:17]} 28. b3 {[%clk 0:02:26]}  Nf8 {[%clk 0:01:16]} 29. Qc7 {[%clk 0:02:24]}  f5 {[%clk 0:01:15]} 30. f4 {[%clk 0:02:14]}  g5 {[%clk 0:01:16]} 31. fxg5 {[%clk 0:02:04]}  f4 {[%clk 0:01:16]} 32. Bf2 {[%clk 0:02:01]}  f3 {[%clk 0:01:08]} 33. gxf3 {[%clk 0:01:59]}  Qxf3 {[%clk 0:01:07]} 34. Kg1 {[%clk 0:01:59]}  Be5 {[%clk 0:00:18]} 35. Qxe7 {[%clk 0:01:55]}  Ng6 {[%clk 0:00:18]} 36. Qe6+ {[%clk 0:01:49]}  Kg7 {[%clk 0:00:17]} 37. Qd7+ {[%clk 0:01:31]}  Kg8 {[%clk 0:00:17]} 38. Qg4 {[%clk 0:01:21]}  Qxb3 {[%clk 0:00:16]} 39. Qc8+ {[%clk 0:01:13]}  Kg7 {[%clk 0:00:16]} 40. Qxb7+ {[%clk 0:01:13]}  Kg8 {[%clk 0:00:15]} 41. Qc8+ {[%clk 0:01:10]}  Nf8 {[%clk 0:00:16]} 42. Qg4 {[%clk 0:01:05]}  Qb1+ {[%clk 0:00:13]} 43. Kg2 {[%clk 0:01:03]}  Ng6 {[%clk 0:00:14]} 44. Qe6+ {[%clk 0:00:59]}  Kg7 {[%clk 0:00:12]} 45. Qd7+ {[%clk 0:00:58]}  Kg8 {[%clk 0:00:12]} 46. Nxd6 {[%clk 0:00:51]}  Nf4+ {[%clk 0:00:11]} 47. Kf3 {[%clk 0:00:51]}  Qd1+ {[%clk 0:00:11]} 48. Ke4 {[%clk 0:00:50]}  Qd3+ {[%clk 0:00:11]} 49. Kxe5 {[%clk 0:00:50]}  Ng6+ {[%clk 0:00:10]} 50. Kf6 {[%clk 0:00:48]}  Qc3+ {[%clk 0:00:06]} 51. Kf5 {[%clk 0:00:41]}  Qxh3+ {[%clk 0:00:06]} 52. Kf6 {[%clk 0:00:39]}  Qxd7 {[%clk 0:00:06]} 53. Bxc5 {[%clk 0:00:39]}  Qd8+ {[%clk 0:00:06]} 54. Ke6 {[%clk 0:00:38]}  Qxg5 {[%clk 0:00:06]} 55. Nf5 {[%clk 0:00:34]}  Qg4 {[%clk 0:00:05]} 56. Kf6 {[%clk 0:00:30]}  Qxc4 {[%clk 0:00:04]} 57. Bd4 {[%clk 0:00:22]}  Qxd5 {[%clk 0:00:03]} 58. Ba1 {[%clk 0:00:22]}  Qc6+ {[%clk 0:00:03]} 59. Kg5 {[%clk 0:00:21]}  Qa6 {[%clk 0:00:03]} 60. Nh6+ {[%clk 0:00:21]}  Kf8 {[%clk 0:00:03]} 61. Bf6 {[%clk 0:00:21]}  Ke8 {[%clk 0:00:03]} 62. Nf5 {[%clk 0:00:21]}  Qb5 {[%clk 0:00:04]} 63. Kg4 {[%clk 0:00:20]}  Qe2+ {[%clk 0:00:04]} 64. Kg5 {[%clk 0:00:20]}  Qg2+ {[%clk 0:00:05]} 65. Kh6 {[%clk 0:00:20]}  Nf8 {[%clk 0:00:05]} 66. Bg7 {[%clk 0:00:19]}  Kf7 {[%clk 0:00:05]} 67. Bxf8 {[%clk 0:00:18]}  Qg6# {[%clk 0:00:05]} 0-1


[Site "https://www.chess.com"]